fUST/lending_fUST_20260201
["ID","MTS","AMOUNT","RATE_DAILY","PERIOD"]
[404162511,1769889037016,-605.5062385,0.00036599,2]
[404162512,1769889037026,-543.62,0.00037,14]
[404162513,1769889037036,-325.87588397,0.0003728,3]
[404162514,1769889037045,-1000.0,0.0003729,30]
[404162515,1769889037054,-1000.0,0.0003729,30]
[404162516,1769889037065,-1000.0,0.0003729,30]
[404162517,1769889037075,-715.0,0.0003729,30]
[404162518,1769889037084,-1041.66666667,0.0003729,30]
[404162519,1769889037093,-1041.66666667,0.000376,7]
[404162520,1769889037103,-1041.66666667,0.000376,3]
[404162521,1769889037114,-2000.0,0.00038356,120]
[404162522,1769889037123,-150.0,0.00039017,120]
[404162523,1769889037132,-3005.88004193,0.0004,120]
[404162524,1769889037142,-177.0,0.00041017,120]
[404162525,1769889037151,-1000.0,0.00041019,60]
[404162526,1769889037161,-1000.0,0.00041019,60]
[404162527,1769889037170,-1000.0,0.00041019,60]
[404162528,1769889037179,-2000.0,0.00041095,120]
[404162529,1769889037188,-204.0,0.00043017,120]
[404162530,1769889037198,-1405.86999457,0.00043835,120]
[404162531,1769889037207,-182.51,0.000439,30]
[404162532,1769889037216,-231.0,0.00045017,120]
[404162533,1769889037225,-258.0,0.00047017,120]
[404162534,1769889037234,-285.0,0.00049017,120]
[404162535,1769889037243,-155.0,0.0005,120]
[404162536,1769889037252,-155.0,0.00051,120]
[404162537,1769889037261,-543.62,0.00051,14]
[404162538,1769889037271,-309.46104717,0.00051017,120]
[404162539,1769889037280,-155.0,0.000519,120]
[404162540,1769889037290,-155.0,0.000529,120]
[404162541,1769889037299,-155.0,0.000539,120]
[404162542,1769889037310,-155.0,0.000548,120]
[404162543,1769889037319,-155.0,0.000558,120]
[404162544,1769889037328,-155.0,0.000567,120]
[404162545,1769889037337,-155.0,0.000577,120]
[404162546,1769889037348,-155.0,0.000587,120]
[404162547,1769889037359,-155.0,0.000596,120]
[404162548,1769889037370,-155.0,0.000606,120]
[404162549,1769889037380,-155.0,0.000616,120]
[404162550,1769889037389,-155.0,0.000625,120]
[404162551,1769889037399,-1000.0,0.00063,120]
[404162552,1769889037407,-155.0,0.000635,120]
[404162553,1769889037417,-155.0,0.000645,120]
[404162554,1769889037427,-543.62,0.000645,14]
[404162555,1769889037437,-155.0,0.000654,120]
[404162556,1769889037446,-155.0,0.000664,120]
[404162557,1769889037455,-155.0,0.000674,120]
[404162558,1769889037464,-155.0,0.000683,120]
[404162559,1769889037474,-155.0,0.000693,120]
[404162560,1769889037483,-385.55097398,0.00069768,7]
[404162561,1769889037493,-530.20836522,0.00069768,7]
[404162562,1769889037504,-155.0,0.000702,120]
[404162563,1769889037513,-155.0,0.000712,120]
[404162564,1769889037522,-155.0,0.000722,120]
[404162565,1769889037531,-155.0,0.000731,120]
[404162566,1769889037540,-155.0,0.000741,120]
[404162567,1769889037550,-155.0,0.000751,120]
[404162568,1769889037562,-155.0,0.00076,120]
[404162569,1769889037571,-176.0,0.00077,120]
[404162570,1769889037580,-161.0,0.0008,120]
[404162571,1769889037589,-543.62,0.0008,14]
[404162572,1769889037599,-6543.5950062,0.0009,120]
[404162573,1769889037609,-399.235395,0.00136986,120]
[404162574,1769889037618,-399.235395,0.00144196,120]
[404162575,1769889037628,-988.12714267,0.0014989,120]
[404162576,1769889037637,-399.235395,0.00151406,120]
[404162577,1769889037647,-399.235395,0.00158616,120]
[404162578,1769889037656,-182.51,0.00159,60]
[404162579,1769889037666,-399.235395,0.00165826,120]
[404162580,1769889037675,-543.62,0.00166,30]
[404162581,1769889037685,-399.235395,0.00173035,120]
[404162582,1769889037699,-399.235395,0.00180245,120]
[404162583,1769889037708,-399.235395,0.00187455,120]
[404162584,1769889037717,-399.235395,0.00194665,120]
[404162585,1769889037727,-399.235395,0.00201875,120]
[404162586,1769889037737,-399.235395,0.00209084,120]
[404162587,1769889037746,-399.235395,0.00216294,120]
[404162588,1769889037755,-399.235395,0.00223504,120]
[404162589,1769889037766,-1041.66666667,0.00223504,120]
[404162590,1769889037775,-399.235395,0.00230714,120]
[404162591,1769889037784,-399.235395,0.00237924,120]
[404162592,1769889037793,-399.235395,0.00245133,120]
[404162593,1769889037803,-399.235395,0.00252343,120]
[404162594,1769889037814,-399.235395,0.00259553,120]
[404162595,1769889037823,-399.235395,0.00266763,120]
[404162596,1769889037833,-474.67225508,0.00273873,120]
[404162597,1769889037842,-325.87588397,0.00273963,60]
[404162598,1769889037852,-492.5,0.00273973,120]
[404162599,1769889037861,-492.5,0.00273973,120]
[404162600,1769889037871,-492.5,0.00273973,120]
[404162601,1769889037880,-492.5,0.00273973,120]
[404162602,1769889037889,-492.5,0.00273973,120]
[404162603,1769889037899,-492.5,0.00273973,120]
[404162604,1769889037909,-492.5,0.00273973,120]
[404162605,1769889037918,-492.5,0.00273973,120]
[404162606,1769889037927,-492.5,0.00273973,120]
[404162607,1769889037936,-492.5,0.00273973,120]
[404162608,1769889037946,-492.5,0.00273973,120]
[404162609,1769889037955,-492.5,0.00273973,120]
[404162610,1769889037964,-492.5,0.00273973,120]
[404162611,1769889037974,-492.5,0.00273973,120]
[404162612,1769889037984,-492.5,0.00273973,120]
[404162613,1769889037993,-492.5,0.00273973,120]
[404162614,1769889038003,-492.5,0.00273973,120]
[404162615,1769889038013,-492.5,0.00273973,120]
[404162616,1769889038022,-492.5,0.00273973,120]
[404162618,1769889038032,-492.5,0.00273973,120]
[404162619,1769889038041,-151.0,0.00273973,120]
[404162620,1769889038051,-151.0,0.00273973,120]
[404162621,1769889038063,-151.0,0.00273973,120]
[404162622,1769889038073,-151.0,0.00273973,120]
[404162623,1769889038083,-151.0,0.00273973,120]
[404162625,1769889038092,-151.0,0.00273973,120]
[404162626,1769889038102,-151.0,0.00273973,120]
[404162627,1769889038111,-151.0,0.00273973,120]
[404162628,1769889038121,-151.0,0.00273973,120]
[404162629,1769889038131,-151.0,0.00273973,120]
[404162630,1769889038140,-151.0,0.00273973,120]
[404162632,1769889038150,-151.0,0.00273973,120]
[404162633,1769889038159,-184.711374,0.00273973,120]
[404162634,1769889038169,-151.010726,0.00273973,7]
[404162635,1769889038179,-151.0,0.00273973,120]
[404162636,1769889038189,-151.0,0.00273973,120]
[404162637,1769889038198,-151.0,0.00273973,120]
[404162639,1769889038208,-178.305353,0.00273973,120]
[404162641,1769889038217,-151.0,0.00273973,120]
[404162643,1769889038227,-151.0,0.00273973,120]
[404162645,1769889038237,-151.0,0.00273973,120]
[404162647,1769889038246,-151.0,0.00273973,120]
[404162649,1769889038255,-151.0,0.00273973,120]
[404162651,1769889038264,-271.81383713,0.00273973,120]
[404162653,1769889038273,-151.0,0.00273973,120]
[404162654,1769889038282,-151.0,0.00273973,120]
[404162656,1769889038291,-151.0,0.00273973,120]
[404162658,1769889038300,-177.012067,0.00273973,120]
[404162660,1769889038310,-151.0,0.00273973,60]
[404162662,1769889038320,-182.864764,0.00273973,60]
[404162664,1769889038329,-151.0,0.00273973,120]
[404162666,1769889038339,-151.0,0.00273973,120]
[404162668,1769889038348,-151.0,0.00273973,120]
[404162670,1769889038357,-151.0,0.00273973,120]
[404162672,1769889038367,-151.0,0.00273973,120]
[404162674,1769889038376,-151.0,0.00273973,120]
[404162675,1769889038385,-151.0,0.00273973,120]
[404162677,1769889038394,-151.0,0.00273973,120]
[404162679,1769889038404,-189.489535,0.00273973,120]
[404162681,1769889038414,-238.641739,0.00273973,120]
[404162683,1769889038424,-399.235395,0.00273973,120]
[404162685,1769889038434,-160.18845266,0.00287999,90]
[404162687,1769889038443,-445.202766,0.00334879,73]
[404162689,1769889038453,-630.0,0.00354417,120]
[404162691,1769889038462,-2151.0,0.00354417,120]
[404162693,1769889038471,-203.757,0.00354417,120]
[404162695,1769889038480,-150.154,0.00354417,120]
[404162697,1769889038489,-630.0,0.00357417,120]
[404162699,1769889038499,-2151.0,0.00357417,120]
[404162701,1769889038508,-543.62,0.00358,30]
[404162703,1769889038521,-630.0,0.00360417,120]
[404162705,1769889038531,-2151.0,0.00360417,120]
[404162707,1769889038539,-630.0,0.00363417,120]
[404162709,1769889038548,-2151.0,0.00363417,120]
[404162711,1769889038558,-630.0,0.00366417,120]
[404162713,1769889038568,-2151.0,0.00366417,120]
[404162715,1769889038577,-630.0,0.00369417,120]
[404162716,1769889038590,-2151.0,0.00369417,120]
[404162718,1769889038600,-630.0,0.00372417,120]
[404162720,1769889038610,-2144.0,0.00372417,120]
[404162722,1769889038619,-630.0,0.00375417,120]
[404162724,1769889038630,-325.87588397,0.00387406,90]
[404162726,1769889038640,-429.318,0.00397909,118]
[404162729,1769889038651,-250.0,0.00397909,118]
[404162731,1769889038661,-436.67,0.0039935,120]
[404162732,1769889038670,-475.0,0.0039989,120]
[404162734,1769889038679,-475.0,0.0039989,120]
[404162736,1769889038692,-475.0,0.0039989,120]
[404162738,1769889038702,-475.0,0.0039989,120]
[404162740,1769889038712,-414.0,0.00429999,119]
[404162742,1769889038722,-250.0,0.00429999,119]
[404162744,1769889038733,-151.0,0.00429999,119]
[404162746,1769889038742,-151.0,0.004328,74]
[404162748,1769889038752,-777.18169567,0.0050985,120]
[404162750,1769889038762,-500.0,0.00547945,120]
[404162752,1769889038771,-500.0,0.00547945,120]
[404162754,1769889038780,-500.0,0.00547945,120]
[404162756,1769889038789,-500.0,0.00547945,120]
[404162758,1769889038799,-500.0,0.00547945,120]
[404162760,1769889038809,-500.0,0.00547945,120]
[404162762,1769889038818,-500.0,0.00547945,120]
[404162764,1769889038827,-500.0,0.00547945,120]
[404162766,1769889038836,-500.0,0.00547945,120]
[404162768,1769889038846,-500.0,0.00547945,120]
[404162770,1769889038854,-500.0,0.00547945,120]
[404162772,1769889038863,-500.0,0.00547945,120]
[404162774,1769889038872,-500.0,0.00547945,120]
[404162776,1769889038882,-500.0,0.00547945,120]
[404162778,1769889038891,-500.0,0.00547945,120]
[404162780,1769889038900,-500.0,0.00547945,120]
[404162782,1769889038910,-500.0,0.00547945,120]
[404162784,1769889038919,-500.0,0.00547945,120]
[404162786,1769889038928,-500.0,0.00547945,120]
[404162787,1769889038937,-500.00000034,0.00547945,120]
[404162790,1769889038947,-161.0,0.006636,120]
[404162791,1769889038956,-40912.15932982,0.00717,120]
[404162793,1769889038966,-30000.0,0.007288,120]
[404162795,1769889038975,-651.75176794,0.0073879,120]
[404162797,1769889038984,-69999.999998,0.007388,120]
[404162799,1769889038993,-325.87588397,0.0074879,120]
[404162801,1769889039002,-40000.0,0.007488,120]
[404162803,1769889039011,-325.87588397,0.0074989,120]
[404162813,1769889039103,-50684.46121424,0.007499,120]
[404162815,1769889039114,-297109.95516627,0.007499,120]
[404162819,1769889039140,-774.87,0.007499,120]
[404162823,1769889039163,-500.0,0.00013561,2]
[404162825,1769889039173,-200.0,0.000305,120]
[404162827,1769889039182,-1352.84,0.00032228,10]
[404162829,1769889039192,-4014108.17483373,0.007499,120]
[404162831,1769889039201,-1000.0,0.0079,120]
[404162833,1769889039211,-6382.43383,0.007934,79]
[404162835,1769889039220,-1427.13190439,0.00822239,94]
[404162836,1769889039229,-1835.62009561,0.00822239,94]
[404162838,1769889039239,-151.0,0.008291,91]
[404162840,1769889039248,-710.0,0.00837395,31]
[404162842,1769889039257,-152.0,0.0093,120]
[404162845,1769889039267,-466.0,0.009979,120]
[404162846,1769889039276,-777.18169567,0.01006534,120]
[404162848,1769889039285,-474.67225506,0.01187855,120]
[404162850,1769889039294,-151.0,0.012255,115]
[404162852,1769889039303,-161.0,0.012473,120]
[404162853,1769889039314,-543.62,0.0126,30]
[404162854,1769889039323,-3664.12774786,0.0126,120]
[404162855,1769889039333,-325.87588397,0.0127299,120]
[404162856,1769889039343,-13340.51,0.01273,116]
[404162857,1769889039352,-200.0,0.0131414,120]
[404162858,1769889039362,-6622.39058,0.01361,65]
[404162859,1769889039371,-6027.0,0.0142286,106]
[404162860,1769889039380,-8856.79407077,0.01488076,77]
[404162861,1769889039389,-444.0,0.0149,120]
[404162862,1769889039398,-777.18169567,0.01503217,120]
[404162863,1769889039407,-151.0,0.016219,106]
[404162864,1769889039416,-1000.0,0.018,120]
[404162865,1769889039425,-161.0,0.018309,120]
[404162866,1769889039434,-152.0,0.0193,120]
[404162867,1769889039443,-100000.0,0.0199,120]
[404162868,1769889039452,-777.18169567,0.019999,120]
[404162869,1769889039462,-155.0,0.02,120]
[404162870,1769889039471,-151.0,0.020182,118]
[404162871,1769889039480,-10000.0,0.020789,120]
[404162872,1769889039490,-474.67225506,0.02101837,120]
[404162873,1769889039500,-10000.0,0.02121232,120]
[404162874,1769889039509,-10000.0,0.021789,120]
[404162875,1769889039518,-155.0,0.02222,120]
[404162876,1769889039527,-10000.0,0.022789,120]
[404162877,1769889039536,-10000.0,0.023789,120]
[404162878,1769889039546,-161.0,0.024145,120]
[404162879,1769889039555,-151.0,0.024146,102]
[404162880,1769889039564,-543.62,0.0242,30]
[404162881,1769889039573,-10000.0,0.024789,120]
[404162882,1769889039582,-1001.31416643,0.0255269,30]
[404162883,1769889039591,-10000.0,0.025789,120]
[404162884,1769889039602,-20000.0,0.02580803,120]
[404162885,1769889039613,-10000.0,0.026789,120]
[404162886,1769889039624,-160.0,0.0272007,3]
[404162887,1769889039634,-10000.0,0.027789,120]
[404162888,1769889039643,-1000.0,0.028,120]
[404162889,1769889039654,-151.0,0.028109,97]
[404162890,1769889039665,-200.0,0.0281747,120]
[404162891,1769889039675,-10000.0,0.028789,120]
[404162892,1769889039684,-49507.1857164,0.0288,120]
[404162893,1769889039695,-50000.0,0.0289,120]
[404162894,1769889039705,-152.0,0.0293,120]
[404162895,1769889039715,-157.82282567,0.02974192,120]
[404162896,1769889039724,-10000.0,0.029789,120]
[404162897,1769889039735,-161.0,0.029982,120]
[404162898,1769889039745,-1955.25530382,0.0299999,120]
[404162899,1769889039754,-155.0,0.03,120]
[404162900,1769889039765,-260000.0,0.03,120]
[404162901,1769889039776,-157.82282567,0.03013753,120]
[404162902,1769889039786,-474.67225506,0.03015818,120]
[404162903,1769889039795,-157.82282567,0.03053288,120]
[404162904,1769889039804,-10000.0,0.030789,120]
[404162905,1769889039815,-157.82282567,0.03092849,120]
[404162906,1769889039824,-30000.0,0.03139941,120]
[404162907,1769889039833,-400.0,0.0316079,120]
[404162908,1769889039843,-10000.0,0.031789,120]
[404162909,1769889039853,-160.0,0.0319995,4]
[404162910,1769889039862,-160.0,0.0319995,5]
[404162911,1769889039871,-200.0,0.0320637,120]
[404162912,1769889039880,-151.0,0.032073,93]
[404162913,1769889039890,-10000.0,0.032789,120]
[404162914,1769889039899,-155.0,0.03333,120]
[404162915,1769889039911,-10000.0,0.033789,120]
[404162916,1769889039921,-10000.0,0.034789,120]
[404162917,1769889039930,-10000.0,0.035789,120]
[404162918,1769889039940,-161.0,0.035818,120]
[404162920,1769889039950,-151.0,0.036036,91]
[404162922,1769889039959,-10000.0,0.036789,120]
[404162923,1769889039969,-10000.0,0.037789,120]
[404162924,1769889039978,-860.50098701,0.038,120]
[404162925,1769889039988,-543.62,0.038,30]
[404162927,1769889039998,-100000.0,0.03820219,120]
[404162928,1769889040007,-200.0,0.03824636,120]
[404162929,1769889040016,-10000.0,0.038789,120]
[404162930,1769889040026,-325.87588397,0.0389999,120]
[404162931,1769889040035,-500000.0,0.039,120]
[404162932,1769889040046,-1041.66666667,0.039,120]
[404162933,1769889040055,-675753.34233734,0.039,120]
[404162935,1769889040094,280.22090672,0.00012034,2]
[404162972,1769889040604,-1402.16367979,0.039,120]
[404162975,1769889040624,-3283.8,0.039,120]
[404163116,1769889045423,-6361.46683612,0.039,120]
[404163125,1769889046596,-1127.37,0.0389999,120]
[404163126,1769889046606,-10550.49754369,0.039,120]
[404163137,1769889078193,178.9600823,0.00036599,120]
[404163138,1769889212705,-300.0,0.00013272,2]
[404163139,1769889212737,-150.0,0.00013272,2]
[404163140,1769889212769,-500.41302693,0.00013273,2]
[404163141,1769889212798,-500.38548006,0.00013273,2]
[404163142,1769889212830,-500.0,0.00013273,2]
[404163143,1769889212858,-500.6294263,0.00013273,2]
[404163144,1769889212886,-500.90147035,0.00013273,2]
[404163145,1769889212913,-500.98228606,0.00013273,2]
[404163146,1769889212940,-500.5843316,0.00013273,2]
[404163147,1769889212970,-500.0,0.00013273,2]
[404163148,1769889212999,-501.0748173,0.00013273,2]
[404163149,1769889213178,-90.0683228,0.00013273,2]
[404163150,1769889219325,-500.0,0.00013265,2]
[404163151,1769889219354,-500.0,0.00013265,2]
[404163152,1769889219383,-500.0,0.00013265,2]
[404163153,1769889219414,-500.0,0.00013265,2]
[404163154,1769889219447,-500.0,0.00013265,2]
[404163155,1769889219481,-500.0,0.00013265,2]
[404163156,1769889219510,-500.0,0.00013265,2]
[404163157,1769889219538,-500.0,0.00013265,2]
[404163158,1769889219568,-500.0,0.00013265,2]
[404163159,1769889219599,-500.0,0.00013265,2]
[404163160,1769889219935,-0.01,0.00013272,2]
[404163161,1769889225606,-297.01394586,0.00013272,2]
[404163162,1769889225634,-409.9316772,0.00013273,2]
[404163163,1769889225661,-501.02853559,0.00013273,2]
[404163164,1769889225689,-500.0,0.00013273,2]
[404163165,1769889225718,-504.27176123,0.00013273,2]
[404163166,1769889225807,-5575.51816024,0.00013273,2]
[404163167,1769889260553,5000.0,0.000131,2]
[404163168,1769889269105,2580.73160141,0.000131,2]
[404163169,1769889284745,2419.27839859,0.000131,2]
[404163170,1769889284767,2580.72160141,0.000131,2]
[404163171,1769889308102,5000.0,0.000131,2]
[404163172,1769889330415,2419.28839859,0.000131,2]
[404163173,1769889330440,2580.71160141,0.000131,2]
[404163174,1769889353032,-500.0,0.00013264,2]
[404163175,1769889353061,-332.5910335,0.00013264,2]
[404163176,1769889353092,-500.0,0.00013264,2]
[404163177,1769889353122,-500.0,0.00013264,2]
[404163178,1769889353152,-500.0,0.00013264,2]
[404163179,1769889353183,-500.0,0.00013264,2]
[404163180,1769889353211,-300.0,0.00013272,2]
[404163181,1769889353241,-300.0,0.00013272,2]
[404163182,1769889353272,-300.0,0.00013272,2]
[404163183,1769889353302,-1200.0,0.00013272,2]
[404163184,1769889353546,5000.0,0.000131,2]
[404163185,1769889363639,-300.0,0.00013272,2]
[404163186,1769889376120,3102.22616995,0.000131,2]
[404163187,1769889384122,1718.22767628,0.000131,2]
[404163188,1769889391885,3552.35888427,0.000131,2]
[404163189,1769889406194,-459.86281749,0.00013273,2]
[404163190,1769889406221,-501.52215443,0.00013273,2]
[404163191,1769889406248,-501.84108282,0.00013273,2]
[404163192,1769889406274,-500.0,0.00013273,2]
[404163193,1769889406300,-504.36727375,0.00013273,2]
[404163194,1769889406326,-500.52410142,0.00013273,2]
[404163195,1769889406354,-500.0,0.00013273,2]
[404163196,1769889406385,-448.34041549,0.00013273,2]
[404163197,1769889406413,-500.0,0.00013273,2]
[404163198,1769889406442,-500.0,0.00013273,2]
[404163199,1769889413454,-500.0,0.00013273,2]
[404163200,1769889413483,-500.42745581,0.00013273,2]
[404163201,1769889413512,-500.0,0.00013273,2]
[404163202,1769889413541,-500.0,0.00013273,2]
[404163203,1769889419307,-9747.57299867,0.00013273,2]
[404163204,1769889422453,5000.0,0.000131,2]
[404163205,1769889492090,500.0,0.00058198,120]
[404163206,1769889492364,500.0,0.00058198,120]
[404163207,1769889492604,583.529829,0.00058198,120]
[404163208,1769889506452,-500.0,0.00013264,2]
[404163209,1769889506480,-500.0,0.00013264,2]
[404163210,1769889506508,-500.0,0.00013264,2]
[404163211,1769889506536,-500.0,0.00013264,2]
[404163212,1769889506565,-500.0,0.00013264,2]
[404163213,1769889506593,-500.0,0.00013264,2]
[404163214,1769889506623,-500.0,0.00013264,2]
[404163215,1769889506656,-500.0,0.00013264,2]
[404163216,1769889506684,-500.0,0.00013264,2]
[404163217,1769889506712,-500.0,0.00013264,2]
[404163218,1769889506892,-0.01,0.00013264,2]
[404163219,1769889506927,-499.99,0.00013264,2]
[404163220,1769889506957,-500.0,0.00013264,2]
[404163221,1769889506987,-500.0,0.00013264,2]
[404163222,1769889507016,-500.0,0.00013264,2]
[404163223,1769889507047,-500.0,0.00013264,2]
[404163224,1769889507077,-500.0,0.00013264,2]
[404163225,1769889507108,-500.0,0.00013264,2]
[404163226,1769889507138,-500.0,0.00013264,2]
[404163227,1769889507168,-500.0,0.00013264,2]
[404163228,1769889507197,-500.0,0.00013264,2]
[404163229,1769889507359,-0.03,0.00013264,2]
[404163230,1769889516063,-499.97,0.00013264,2]
[404163231,1769889516091,-500.0,0.00013264,2]
[404163232,1769889516119,-483.67170975,0.00013264,2]
[404163233,1769889516147,-500.0,0.00013264,2]
[404163234,1769889516175,-500.0,0.00013264,2]
[404163235,1769889516202,-500.0,0.00013264,2]
[404163236,1769889516230,-539.61470374,0.00013264,2]
[404163237,1769889516258,-300.0,0.00013272,2]
[404163238,1769889516288,-150.0,0.00013272,2]
[404163239,1769889516438,-2053.49717302,0.00013273,2]
[404163240,1769889516451,-10000.01,0.00013273,2]
[404163241,1769889537342,-10000.01,0.00013273,2]
[404163242,1769889537691,-4344.82363364,0.00013273,2]
[404163243,1769889537722,-500.0,0.00013273,2]
[404163244,1769889537772,-310.36273272,0.00013273,2]
[404163245,1769889540548,-189.63726728,0.00013273,2]
[404163246,1769889540655,-500.61810231,0.00013273,2]
[404163247,1769889540685,-501.00416719,0.00013273,2]
[404163248,1769889540714,-500.0,0.00013273,2]
[404163249,1769889540742,-500.0,0.00013273,2]
[404163250,1769889540769,-507.14889108,0.00013273,2]
[404163251,1769889540798,-300.0,0.00013537,2]
[404163252,1769889540826,-300.0,0.00013537,2]
[404163253,1769889540855,-300.0,0.00013537,2]
[404163254,1769889540887,-300.0,0.00013537,2]
[404163255,1769889540919,-300.0,0.00013537,2]
[404163256,1769889540949,-300.0,0.00013537,2]
[404163257,1769889540979,-300.0,0.00013537,2]
[404163258,1769889541008,-103.19314428,0.00013537,2]
[404163259,1769889541198,-196.80685572,0.00013537,2]
[404163260,1769889543708,-300.0,0.00013537,2]
[404163261,1769889543741,-300.0,0.00013537,2]
[404163262,1769889543773,-300.0,0.00013537,2]
[404163263,1769889543806,-300.0,0.00013537,2]
[404163264,1769889543837,-300.0,0.00013537,2]
[404163265,1769889543871,-300.0,0.00013537,2]
[404163266,1769889543902,-300.0,0.00013537,2]
[404163267,1769889543933,-600.0,0.00013537,2]
[404163268,1769889543961,-500.0,0.00013698,2]
[404163269,1769889543992,-500.0,0.00013699,2]
[404163270,1769889544020,-541.59941726,0.00013699,2]
[404163271,1769889544049,-500.0,0.00013699,2]
[404163272,1769889544077,-18.08248902,0.00013699,2]
[404163273,1769889544258,-480.64618744,0.00013699,2]
[404163274,1769889546704,-500.0,0.00013273,2]
[404163275,1769889546732,-500.0,0.00013699,2]
[404163276,1769889546761,-215.23784729,0.00013699,2]
[404163277,1769889546788,-500.0,0.00013699,2]
[404163278,1769889546815,-500.0,0.00013699,2]
[404163279,1769889546843,-500.0,0.00013699,2]
[404163280,1769889546875,-502.75778254,0.00013699,2]
[404163281,1769889546902,-272.68459961,0.00013821,2]
[404163282,1769889546932,-187.25770501,0.00013821,2]
[404163283,1769889546959,-494.18265189,0.00013821,2]
[404163284,1769889546988,-623.39633756,0.00013821,2]
[404163285,1769889547077,-879.37573058,0.00013821,2]
[404163286,1769889547106,-1000.0,0.00013821,2]
[404163287,1769889547132,-500.57921653,0.00013821,2]
[404163288,1769889547160,-1000.0,0.00014055,2]
[404163289,1769889547187,-172.01553125,0.00014247,2]
[404163290,1769889547213,-1000.0,0.00014247,2]
[404163291,1769889547472,-408.9761522,0.00014247,2]
[404163292,1769889547487,-591.0238478,0.00014247,2]
[404163293,1769889547494,-305.04519548,0.00014368,2]
[404163294,1769889586319,-500.0,0.00013273,2]
[404163295,1769889595418,300.0,0.00013537,2]
[404163296,1769889601780,-300.0,0.00013673,2]
[404163297,1769889604434,9400.01,0.00013695,2]
[404163298,1769889614419,-500.0,0.00013264,2]
[404163299,1769889614447,-500.0,0.00013264,2]
[404163300,1769889614474,-500.78172484,0.00013273,2]
[404163301,1769889614501,-2949.349015,0.00013695,2]
[404163302,1769889614530,-484.74852032,0.00013695,2]
[404163303,1769889652029,-180.11046574,0.00013422,2]
[404163304,1769889662925,500.60380458,0.00013273,2]
[404163305,1769889663299,500.21047809,0.00013273,2]
[404163306,1769889665902,500.0,0.00013273,2]
[404163307,1769889666595,500.0,0.00013273,2]
[404163308,1769889666635,500.0,0.00013273,2]
[404163309,1769889667617,-3770.55302722,0.00013558,2]
[404163310,1769889667645,-130.25147968,0.00013695,2]
[404163311,1769889667673,-500.0,0.00013699,2]
[404163312,1769889667699,-500.0,0.00013699,2]
[404163313,1769889667726,-38.14281555,0.00013699,2]
[404163314,1769889667883,-122.1153551,0.00013699,2]
[404163315,1769889667914,-500.51551222,0.00013699,2]
[404163316,1769889667944,-500.0,0.00013699,2]
[404163317,1769889667972,-288.34858207,0.00013699,2]
[404163318,1769889668001,-156.73649264,0.00013821,2]
[404163319,1769889668028,-289.05987641,0.00013821,2]
[404163320,1769889668057,-340.75088524,0.00013821,2]
[404163321,1769889668091,-300.0,0.00013972,2]
[404163322,1769889668123,-300.0,0.00013972,2]
[404163323,1769889668156,-300.0,0.00013972,2]
[404163324,1769889668186,-300.0,0.00013972,2]